bitfinex/quotes_ETHUSD_20250411
["timestamp","ask_amount","ask_price","bid_price","bid_amount"]
[1744366359071,6.43058,1555.1,1554.7,0.819]
[1744366359255,6.43058,1555.1,1554.8,12.86307]
[1744366359568,6.43004,1555.2,1554.7,7.25097]
[1744366359878,12.86212,1555.0,1554.7,7.25097]
[1744366360166,6.43106,1555.0,1554.7,13.68297]
[1744366360665,12.86117,1555.1,1554.8,6.43166]
[1744366361273,6.43087,1555.0,1554.7,7.25097]
[1744366361433,6.43045,1555.1,1554.7,0.819]
[1744366361639,6.43147,1554.9,1554.6,6.43251]
[1744366361978,6.43147,1554.9,1554.6,6.43241]
[1744366361979,12.86288,1554.9,1554.6,6.43241]
[1744366362179,6.43128,1554.9,1554.6,6.43241]
[1744366362386,7.073995,1555.0,1554.6,6.4324]
[1744366362550,13.505115,1555.0,1554.7,6.43208]
[1744366362749,13.505175,1555.0,1554.7,6.43208]
[1744366362952,12.86213,1555.0,1554.7,6.43208]
[1744366363153,6.43095,1555.0,1554.7,12.86416]
[1744366363785,6.43095,1555.0,1554.7,6.43199]
[1744366363980,6.43128,1554.9,1554.6,12.86488]
[1744366364281,12.92040237,1555.1,1554.8,6.43168]
[1744366364482,6.43017,1555.2,1554.9,7.24596]
[1744366364785,12.86037,1555.2,1554.9,14.63296]
[1744366364950,6.43047,1555.1,1554.9,8.2019]
[1744366365884,6.43015,1555.2,1554.9,14.63305]
[1744366366083,6.43015,1555.2,1554.9,21.06421]
[1744366366886,12.86032,1555.2,1554.9,14.63305]
[1744366367094,6.43015,1555.2,1554.9,21.06422]
[1744366367252,12.86037,1555.2,1554.9,8.2019]
[1744366367452,6.43056,1555.1,1554.9,8.2019]
[1744366368289,6.43056,1555.1,1554.9,14.63317]
[1744366368470,6.43004,1555.2,1554.9,21.06444]
[1744366369075,6.4306,1555.1,1554.9,8.2019]
[1744366369278,6.43086,1555.0,1554.9,7.387]
[1744366369664,6.43086,1555.0,1554.9,7.56746466]
[1744366369867,6.49003237,1555.0,1554.9,7.56746466]
[1744366370589,6.49003237,1555.0,1554.9,0.18046466]
[1744366370750,6.43158,1554.9,1554.6,7.386]
[1744366370948,6.42926,1555.4,1554.9,0.18046466]
[1744366371149,6.43029,1555.2,1554.9,6.43128]
[1744366371383,12.86046,1555.2,1555.0,0.17975961]
[1744366371690,6.43045,1555.1,1555.0,0.17975961]
[1744366372087,6.43045,1555.1,1554.8,6.43151]
[1744366372395,4.78082617,1555.6,1555.4,6.42882]
[1744366372689,11.20936617,1555.6,1555.4,7.386]
[1744366372893,11.20936617,1555.6,1555.5,0.17004432]
[1744366373080,13.67509816,1555.6,1555.5,0.17004432]
[1744366373250,6.42912,1555.5,1555.2,7.386]
[1744366373451,11.96520617,1555.6,1555.2,7.386]
[1744366373693,4.78082617,1555.6,1555.4,6.42907]
[1744366373854,4.83999854,1555.6,1555.2,14.63067]
[1744366374057,4.78082617,1555.6,1555.5,7.2436]
[1744366374270,4.40732412,1555.6,1555.5,10.85787893]
[1744366374491,4.40732412,1555.6,1555.5,10.85787317]
[1744366374676,4.40732412,1555.6,1555.5,10.7936]
[1744366375354,4.40732412,1555.6,1555.5,7.2436]
[1744366375701,4.40732412,1555.6,1555.5,7.7936]
[1744366375895,4.40732412,1555.6,1555.5,7.2436]
[1744366376299,4.40732412,1555.6,1555.5,7.7936]
[1744366376671,6.49077,1555.8,1555.5,1.3648]
[1744366376979,0.0632,1555.8,1555.6,13.81224]
[1744366377178,0.0632,1555.8,1555.6,7.384]
[1744366377598,6.49092,1555.8,1555.6,7.384]
[1744366377966,6.49092,1555.8,1555.4,5.08793119]
[1744366377967,0.0632,1555.8,1555.4,5.08793119]
[1744366378278,6.42818,1555.7,1555.4,7.384]
[1744366378481,6.42896,1555.5,1555.2,0.7662]
[1744366378694,6.42936,1555.4,1555.2,0.7662]
[1744366378879,12.85889,1555.4,1555.0,21.03139]
[1744366379413,12.85889,1555.4,1555.0,21.03135]
[1744366379414,6.42936,1555.4,1555.0,21.03135]
[1744366379587,12.85887,1555.4,1555.0,14.6006]
[1744366379908,7.72101424,1555.4,1554.8,6.4315]
[1744366380217,12.86068,1555.2,1554.9,6.43124]
[1744366380368,6.43027,1555.2,1554.8,7.2174]
[1744366380575,6.43058,1555.1,1554.7,10.75372119]
[1744366380811,6.43058,1555.1,1554.7,10.75368119]
[1744366381107,6.43058,1555.1,1554.8,6.43165]
[1744366381506,6.48931237,1555.2,1554.7,10.75368119]
[1744366381507,0.05917237,1555.2,1554.9,6.43102]
[1744366381806,6.42979,1555.3,1555.0,20.24444]
[1744366382015,6.42979,1555.3,1555.0,13.81371]
[1744366382317,7.72111424,1555.4,1555.0,13.81371]
[1744366382718,0.05917237,1555.3,1555.0,7.383]
[1744366383218,3.7923,1555.5,1555.0,7.383]
[1744366383219,6.43042,1555.2,1555.0,7.383]
[1744366383390,6.43102,1555.0,1554.7,0.7618]
[1744366383590,6.43134,1554.9,1554.6,23.2488]
[1744366383786,6.43134,1554.9,1554.6,20.24878]
[1744366383990,6.43134,1554.9,1554.6,13.81638]
[1744366384189,12.86289,1554.9,1554.6,7.384]
[1744366384392,6.43169,1554.8,1554.6,7.384]
[1744366384599,6.43169,1554.8,1554.7,0.1833853]
[1744366384803,6.43169,1554.8,1554.6,7.384]
[1744366385135,6.43169,1554.8,1554.7,0.1833853]
[1744366385432,7.77716537,1554.8,1554.6,7.384]
[1744366385596,7.77716537,1554.8,1554.7,0.18565168]
[1744366385801,6.43216,1554.7,1554.4,6.43323]
[1744366386016,14.150003,1554.8,1554.4,12.86646]
[1744366386211,7.717993,1554.8,1554.5,6.43282]
[1744366386410,0.05917237,1555.0,1554.6,0.06432445]
[1744366386616,0.87397237,1555.1,1554.7,20.24797]
[1744366386811,6.4314,1554.9,1554.7,7.384]
[1744366387012,7.073362,1555.2,1554.7,7.384]
[1744366387212,7.27123237,1555.4,1555.0,6.43058]
[1744366387421,13.70070237,1555.4,1555.1,6.43041]
[1744366387728,6.42963,1555.3,1555.1,7.384]
[1744366388132,6.42846,1555.6,1555.1,7.384]
[1744366388133,0.7925,1555.6,1555.1,7.384]
[1744366388309,7.22099,1555.6,1555.2,6.42964]
[1744366388508,6.42884,1555.5,1555.1,14.98497312]
[1744366388704,6.42975,1555.3,1555.1,7.384]
[1744366389218,6.48810237,1555.5,1555.1,13.81431]
[1744366389604,13.69243,1555.8,1555.4,4.32173119]
[1744366389805,6.42906,1555.5,1555.1,14.58343]
[1744366390020,12.85819,1555.5,1555.1,21.01376]
[1744366390339,7.31530237,1555.4,1555.0,13.81471]
[1744366390528,7.25613,1555.4,1555.0,13.81479]
[1744366390710,7.25613,1555.4,1555.1,6.43028]
[1744366391038,6.48860237,1555.4,1555.0,13.81473]
[1744366391337,6.42943,1555.4,1555.1,6.43029]
[1744366391541,6.42974,1555.3,1555.0,13.81477]
[1744366393211,12.85957,1555.3,1555.0,13.81477]
[1744366393412,6.43015,1555.2,1555.0,7.384]
[1744366394054,12.86042,1555.2,1555.0,7.384]
[1744366394441,6.43015,1555.2,1555.0,7.384]
[1744366394642,6.43045,1555.1,1555.0,7.384]
[1744366394845,12.8612,1555.1,1554.8,0.7691]
[1744366395022,6.43096,1555.0,1554.7,10.75367119]
[1744366395530,12.92047237,1555.1,1554.8,6.43153]
[1744366396541,6.48974237,1555.1,1554.8,12.86309]
[1744366396859,12.92056237,1555.1,1554.8,6.43153]
[1744366397028,14.42444893,1555.1,1554.8,6.43153]
[1744366397232,14.36527656,1555.1,1554.8,6.43153]
[1744366398360,12.86201,1555.0,1554.7,6.43209]
[1744366398959,6.4321,1554.7,1554.6,7.338]
[1744366399426,6.43183,1554.8,1554.6,7.338]
[1744366399427,6.49100237,1554.8,1554.6,7.338]
[1744366399627,7.22240261,1554.8,1554.6,7.51997624]
[1744366400461,7.16323024,1554.8,1554.6,7.51997624]
[1744366400664,6.4321,1554.7,1554.6,7.51997624]
[1744366401258,6.49127237,1554.7,1554.6,7.51997624]
[1744366401433,6.49127237,1554.7,1554.6,0.18197624]
[1744366401633,6.43281,1554.6,1554.3,6.43363]
[1744366402248,12.86562,1554.6,1554.3,6.43363]
[1744366402882,6.43324,1554.5,1554.2,5.08773119]
[1744366403026,6.43324,1554.5,1554.1,68.9125]
[1744366403027,6.49227237,1554.5,1554.1,75.347]
[1744366403377,6.4334,1554.4,1554.1,68.9125]
[1744366403655,6.43387,1554.3,1554.1,62.478]
[1744366404560,12.86778,1554.3,1554.1,62.478]
[1744366404765,12.86731,1554.4,1554.1,62.478]
[1744366405131,12.86731,1554.4,1554.1,68.91257]
[1744366405332,6.43379,1554.3,1554.1,62.478]
[1744366405526,6.4334,1554.4,1554.1,62.478]
[1744366405743,6.43379,1554.3,1554.1,62.478]
[1744366406350,6.4334,1554.4,1554.1,68.91236]
[1744366406645,12.86713,1554.4,1554.1,68.91236]
[1744366407069,12.86713,1554.4,1554.1,13.77336]
[1744366407277,6.43388,1554.3,1554.1,7.339]
[1744366407572,6.43355,1554.4,1554.1,7.339]
[1744366407772,6.43377,1554.3,1554.1,7.339]
[1744366409766,0.05917237,1554.5,1554.1,7.339]
[1744366409934,6.43346,1554.4,1554.1,20.20787]
[1744366410134,6.43346,1554.4,1554.1,13.7734]
[1744366410870,6.43179,1554.8,1554.5,6.43268]
[1744366411080,12.86369,1554.8,1554.5,13.77268]
[1744366411271,6.43138,1554.9,1554.6,6.43244]
[1744366412141,6.43184,1554.8,1554.5,23.87450233]
[1744366412971,6.43217,1554.7,1554.5,7.34]
[1744366413177,6.43184,1554.8,1554.5,17.44170233]
[1744366413339,6.43184,1554.8,1554.5,20.20551]
[1744366413879,12.86287,1554.9,1554.6,6.43236]
[1744366414685,12.86275,1554.9,1554.7,0.1871011]
[1744366414840,12.86275,1554.9,1554.6,6.43236]
[1744366415040,6.43132,1554.9,1554.8,0.18639559]
[1744366415272,6.43132,1554.9,1554.6,12.86477]
[1744366415575,6.43132,1554.9,1554.8,0.18626226]
[1744366415882,12.86273,1554.9,1554.8,0.18639559]
[1744366416062,12.86273,1554.9,1554.6,6.43236]
[1744366416266,12.86273,1554.9,1554.8,0.18639559]
[1744366416465,12.86273,1554.9,1554.6,6.43236]
[1744366416648,6.43067,1555.1,1554.8,0.18639559]
[1744366416984,12.86141,1555.1,1554.7,6.43197]
[1744366417138,12.86141,1555.1,1554.9,0.18502359]
[1744366417139,6.43086,1555.0,1554.9,0.18502359]
[1744366417343,6.43128,1554.9,1554.8,0.18572896]
[1744366417557,12.86271,1554.9,1554.6,11.5953424]
[1744366417757,6.4321,1554.7,1554.5,7.34]
[1744366418079,12.86369,1554.8,1554.5,13.77279]
[1744366418439,12.86367,1554.8,1554.5,13.77279]
[1744366418876,6.43222,1554.7,1554.5,7.34]
[1744366419872,12.86464,1554.7,1554.5,7.34]
[1744366420077,6.43252,1554.6,1554.5,7.34]
[1744366420578,6.49169237,1554.6,1554.5,7.34]
[1744366420748,6.43352,1554.4,1554.2,62.497]
[1744366421479,6.43296,1554.5,1554.2,62.497]
[1744366421773,6.43349,1554.4,1554.2,62.497]
[1744366421960,0.05917237,1554.6,1554.2,62.497]
[1744366421961,13.68457,1554.5,1554.2,62.497]
[1744366422277,6.4334,1554.4,1554.2,62.497]
[1744366422842,6.43259,1554.6,1554.2,62.497]
[1744366423045,6.43259,1554.6,1554.3,6.43354]
[1744366423351,6.43259,1554.6,1554.3,12.86723]
[1744366423570,7.22391,1554.7,1554.4,6.43333]
[1744366423767,7.22391,1554.7,1554.4,6.43322]
[1744366424083,7.22391,1554.7,1554.4,7.076542]
[1744366424380,7.22391,1554.7,1554.4,13.509762]
[1744366424545,6.43211,1554.7,1554.4,13.509762]
[1744366424746,6.43211,1554.7,1554.4,7.076542]
[1744366425081,6.43211,1554.7,1554.4,6.43322]
[1744366425376,7.26306,1554.9,1554.6,6.43239]
[1744366425588,13.69456,1554.9,1554.6,13.55439]
[1744366426574,6.43174,1554.8,1554.6,7.122]
[1744366426776,6.43098,1555.0,1554.7,6.43194]
[1744366427101,7.21976,1555.1,1554.7,7.22684]
[1744366427420,6.43056,1555.1,1554.8,6.43164]
[1744366427567,6.43056,1555.1,1554.8,12.86322]
[1744366427897,6.43056,1555.1,1554.8,12.86315]
[1744366428265,12.86124,1555.1,1554.8,6.43157]
[1744366428471,12.86136,1555.1,1554.8,6.43157]
[1744366429503,6.43056,1555.1,1554.8,6.43157]
[1744366429665,6.48934237,1555.2,1554.9,6.61611702]
[1744366429872,12.86037,1555.2,1554.9,6.61611702]
[1744366430083,12.91954237,1555.2,1554.9,6.61611702]
[1744366430285,6.43047,1555.1,1554.9,0.18490702]
[1744366430486,6.43086,1555.0,1554.7,13.65884]
[1744366430683,12.86132,1555.1,1554.8,0.18561243]
[1744366431179,12.86132,1555.1,1554.9,7.121]
[1744366431378,12.86132,1555.1,1555.0,0.18420171]
[1744366431585,6.43047,1555.1,1555.0,0.18420171]
[1744366432408,6.48930237,1555.2,1555.0,0.18420171]
[1744366432409,12.91963237,1555.2,1555.0,0.18420171]
[1744366432571,6.43045,1555.1,1555.0,0.18420171]
[1744366433006,6.48962237,1555.1,1555.0,0.18420171]
[1744366433879,6.84824538,1555.1,1555.0,0.18420171]
[1744366434413,0.35862301,1555.1,1555.0,0.18420171]
[1744366434585,0.35862301,1555.1,1555.0,6.61506171]
[1744366434789,0.35862301,1555.1,1555.0,7.37626171]
[1744366435023,15.85877,1555.4,1555.0,13.80712171]
[1744366435381,6.42963,1555.3,1555.0,0.94540171]
[1744366435582,6.43007,1555.2,1555.0,0.94540171]
[1744366435795,12.85965,1555.3,1555.0,0.94540171]
[1744366436000,6.43018,1555.2,1555.0,0.18420171]
[1744366436203,6.42976,1555.3,1555.0,0.18420171]
[1744366436394,12.85953,1555.3,1555.0,6.61495171]
[1744366436890,15.85872,1555.4,1555.0,13.04569171]
[1744366437088,15.85872,1555.4,1555.1,7.18613]
[1744366437318,6.42964,1555.3,1555.1,0.93393329]
[1744366437690,6.42935,1555.4,1555.1,7.36435329]
[1744366438017,6.48852237,1555.4,1555.1,6.60865329]
[1744366438214,6.48839237,1555.4,1555.1,16.70619655]
[1744366438416,6.42922,1555.4,1555.1,16.70609655]
[1744366439278,6.4297,1555.3,1555.1,3.84535655]
[1744366439520,6.4297,1555.3,1555.1,0.17823329]
[1744366439705,6.48841237,1555.4,1555.1,0.17823329]
[1744366439907,6.42924,1555.4,1555.1,7.26957162]
[1744366440302,12.85862,1555.4,1555.1,0.83913162]
[1744366440514,6.42978,1555.3,1555.1,0.17823329]
[1744366440829,6.42931,1555.4,1555.2,0.17432845]
[1744366441017,6.42839,1555.6,1555.3,17.98612326]
[1744366441178,6.42839,1555.6,1555.4,0.17331934]
[1744366441382,12.85694,1555.6,1555.3,11.55662326]
[1744366441581,6.42884,1555.5,1555.3,11.55662326]
[1744366441797,12.85715,1555.6,1555.4,0.17345235]
[1744366441991,6.4288,1555.5,1555.3,11.55662326]
[1744366442209,6.42921,1555.4,1555.3,7.12]
[1744366444337,12.85781,1555.5,1555.3,7.12]
[1744366444718,12.85781,1555.5,1555.4,0.17278624]
[1744366444921,12.85781,1555.5,1555.3,7.12]
[1744366445121,12.85781,1555.5,1555.4,0.17251995]
[1744366445332,12.85781,1555.5,1555.3,7.12]
[1744366445532,13.21655882,1555.5,1555.4,0.17278629]
[1744366445735,6.78754882,1555.5,1555.4,0.17278629]
[1744366445918,6.78754882,1555.5,1555.3,7.12]
[1744366446241,13.21651882,1555.5,1555.4,0.17265309]
[1744366446425,6.42921,1555.4,1555.3,7.12]
[1744366446607,6.42921,1555.4,1555.3,7.29335756]
[1744366447443,6.48797237,1555.5,1555.3,7.29335756]
[1744366447645,7.25989,1555.7,1555.3,18.90918658]
[1744366448005,6.42809,1555.7,1555.4,6.42914]
[1744366448203,12.97780237,1555.8,1555.5,0.172232]
[1744366448632,0.12237237,1555.8,1555.5,13.029662]
[1744366448842,0.12237237,1555.8,1555.6,1.09215372]
[1744366449023,6.54998237,1555.8,1555.7,0.17069015]
[1744366449222,12.97767237,1555.8,1555.5,10.09581326]
[1744366449428,0.12237237,1555.8,1555.6,0.17112802]
[1744366449629,6.42818,1555.7,1555.6,0.17112802]
[1744366449835,6.4284,1555.6,1555.3,24.43594326]
[1744366450710,12.8565,1555.7,1555.3,24.43594326]
[1744366450915,6.42818,1555.7,1555.3,24.43594326]
[1744366451129,12.85646,1555.7,1555.3,18.00643326]
[1744366451333,12.85646,1555.7,1555.3,24.43594326]
[1744366451734,6.42818,1555.7,1555.4,6.42904]
[1744366451937,0.0632,1555.8,1555.6,6.42816]
[1744366452152,0.0632,1555.8,1555.7,7.8786]
[1744366452364,0.0632,1555.8,1555.7,14.30657]
[1744366452546,6.49076,1555.8,1555.7,7.118]
[1744366453035,0.0632,1555.8,1555.7,7.118]
[1744366454069,7.30166,1555.8,1555.7,7.118]
[1744366454435,6.49076,1555.8,1555.7,7.118]
[1744366457244,0.0632,1555.8,1555.7,7.118]
[1744366457443,6.49076,1555.8,1555.7,7.118]
[1744366458540,8.43121924,1555.8,1555.7,7.118]
[1744366458766,8.49039161,1555.8,1555.7,7.118]
[1744366459162,0.0632,1555.8,1555.7,7.118]
[1744366459472,0.0632,1555.8,1555.7,7.28962262]
[1744366459678,0.0632,1555.8,1555.7,8.04582262]
[1744366459874,0.0632,1555.8,1555.7,7.28962262]
[1744366462687,0.0632,1555.8,1555.7,19.23264818]
[1744366464460,0.0632,1555.8,1555.7,18.74481588]
[1744366464660,0.0632,1555.8,1555.7,12.31684588]
[1744366464984,0.0632,1555.8,1555.7,11.76684588]
[1744366465374,0.0632,1555.8,1555.7,18.74481588]
[1744366467899,6.49076,1555.8,1555.7,10.95674588]
[1744366468291,0.0632,1555.8,1555.7,17.38471588]
[1744366468464,0.0632,1555.8,1555.7,10.95674588]
[1744366469430,6.49076,1555.8,1555.7,0.17162262]
[1744366469698,6.42983,1555.3,1555.0,10.89548326]
[1744366469904,6.43006,1555.2,1555.1,0.15959473]
[1744366470389,6.42983,1555.3,1555.1,0.15959473]
[1744366470597,6.43004,1555.2,1555.1,0.15959473]
[1744366470764,6.42977,1555.3,1555.1,0.15959473]
[1744366470969,6.97617,1556.2,1555.1,0.15959473]
[1744366470970,7.27927,1555.8,1555.3,1.3376]
[1744366471166,7.27927,1555.8,1555.5,6.42864]
[1744366471467,6.48737237,1555.7,1555.6,0.15261273]
[1744366471681,6.48737237,1555.7,1555.3,10.88415326]
[1744366471682,12.85652,1555.7,1555.3,10.88415326]
[1744366471999,6.42842,1555.6,1555.4,0.8721991]
[1744366472217,6.4288,1555.5,1555.4,0.15621642]
[1744366472591,6.42849,1555.6,1555.3,10.09670326]
[1744366472798,12.85707,1555.6,1555.4,0.15581684]
[1744366473211,6.42849,1555.6,1555.3,10.09662326]
[1744366473407,6.42849,1555.6,1555.5,0.15484612]
[1744366473612,6.49089,1555.8,1555.5,10.58912326]
[1744366473797,6.49089,1555.8,1555.5,17.17363168]
[1744366474000,0.0632,1555.8,1555.7,10.92439326]
[1744366474209,6.49076,1555.8,1555.7,3.66712326]
[1744366474410,6.49076,1555.8,1555.7,0.15490413]
[1744366474789,0.0632,1555.8,1555.7,3.66712326]
[1744366475124,0.0632,1555.8,1555.7,15.60187547]
[1744366476341,0.0632,1555.8,1555.7,19.73904396]
[1744366477790,0.0632,1555.8,1555.7,16.0719207]
[1744366478099,0.0632,1555.8,1555.7,19.73904396]
[1744366479320,0.0632,1555.8,1555.7,16.0719207]
[1744366479889,0.0632,1555.8,1555.7,19.73904396]
[1744366480230,0.01113081,1556.1,1556.0,6.42673]
[1744366480392,0.01113081,1556.1,1556.0,19.03932626]
[1744366480726,0.01113081,1556.1,1556.0,74.30144759]
[1744366482262,0.01113081,1556.1,1556.0,67.37944759]
[1744366482396,0.01113081,1556.1,1556.0,74.30044759]
[1744366483729,0.00648839,1556.1,1556.0,74.30044759]
[1744366484995,0.00648839,1556.1,1556.0,73.46964759]
[1744366485194,0.00648839,1556.1,1556.0,76.46964759]
[1744366485603,0.00648839,1556.1,1556.0,66.49291759]
[1744366487255,6.43280839,1556.1,1556.0,65.85024459]
[1744366487435,0.00648839,1556.1,1556.0,65.85024459]
[1744366488231,7.24140839,1556.1,1556.0,65.85024459]
[1744366488405,7.24140839,1556.1,1556.0,62.18312133]
[1744366488617,0.00648839,1556.1,1556.0,65.85024459]
[1744366488944,0.00648839,1556.1,1556.0,72.82697459]
[1744366489149,0.00648839,1556.1,1556.0,75.82697459]
[1744366489450,6.4253,1556.4,1556.0,82.25370459]
[1744366489764,6.42601,1556.2,1556.0,68.85024459]
[1744366490043,6.42601,1556.2,1556.0,65.85024459]
[1744366490544,6.42632,1556.1,1556.0,65.85024459]
[1744366490713,7.25331,1556.2,1556.0,65.85024459]
[1744366491120,0.8273,1556.2,1556.0,17.16296459]
[1744366491439,7.25323,1556.2,1556.0,10.73624459]
[1744366491645,6.42632,1556.1,1556.0,10.73624459]
[1744366491818,6.42632,1556.1,1556.0,7.06912133]
[1744366496036,13.67933,1556.2,1556.0,7.06912133]
[1744366496359,6.42632,1556.1,1556.0,7.06912133]
[1744366498339,7.20022,1556.1,1556.0,0.14812133]
[1744366498553,6.42714,1555.9,1555.8,6.923]
[1744366498851,6.42714,1555.9,1555.8,7.0700408]
[1744366501280,7.26141237,1555.9,1555.8,7.0700408]
[1744366501442,7.26141237,1555.9,1555.8,0.1470408]
[1744366501781,7.20348,1555.6,1555.5,6.924]
[1744366502081,7.20279,1555.8,1555.5,6.924]
[1744366502247,6.42675,1556.0,1555.7,6.42766]
[1744366502437,6.42675,1556.0,1555.8,3.66712326]
[1744366502639,6.42675,1556.0,1555.9,6.924]
[1744366502874,12.85291,1556.1,1555.9,6.924]
[1744366503578,6.42673,1556.0,1555.9,6.924]
[1744366504683,6.42673,1556.0,1555.9,7.07199432]
[1744366505241,7.20101,1556.2,1555.9,14.57296608]
[1744366505242,7.20113,1556.2,1555.9,14.57296608]
[1744366505459,6.42561,1556.3,1556.0,10.09379326]
[1744366505654,6.42561,1556.3,1556.1,0.14578938]
[1744366505862,13.65481,1556.4,1556.1,0.14578938]
[1744366506244,13.65481,1556.4,1556.1,0.8933671]
[1744366506581,6.4259,1556.2,1556.1,0.14578938]
[1744366506886,12.91036237,1556.3,1556.1,0.14578938]
[1744366507479,12.85119,1556.3,1556.1,0.14578938]
[1744366507778,6.4259,1556.2,1556.1,0.14578938]
[1744366508670,6.48507237,1556.2,1556.1,0.14578938]
[1744366508871,6.42673,1556.0,1555.9,6.924]
[1744366509070,6.42673,1556.0,1555.9,7.07152892]
[1744366510639,7.27490237,1556.0,1555.9,7.07152892]
[1744366510964,7.21573,1556.0,1555.9,7.07152892]
[1744366511681,7.27490237,1556.0,1555.9,7.07152892]
[1744366511878,7.21573,1556.0,1555.9,7.07152892]
[1744366512080,6.42673,1556.0,1555.9,0.14752892]
[1744366512312,12.85378,1556.0,1555.7,0.8115]
[1744366512491,6.42633,1556.1,1555.9,0.14945691]
[1744366512658,6.42633,1556.1,1556.0,6.924]
[1744366512982,6.42633,1556.1,1556.0,7.07168934]
[1744366513586,7.17913,1556.1,1556.0,7.07168934]
[1744366514362,7.23830237,1556.1,1556.0,7.07168934]
[1744366514565,6.42633,1556.1,1556.0,7.07168934]
[1744366514992,12.85214,1556.2,1556.0,7.77885827]
[1744366515192,6.42603,1556.2,1556.0,7.77885827]
[1744366515391,6.42563,1556.3,1556.1,0.55]
[1744366515591,6.4252,1556.4,1556.1,17.06962326]
[1744366515887,6.4252,1556.4,1556.2,0.14003835]
[1744366515888,12.85046,1556.4,1556.2,0.14003835]
[1744366516097,6.42609,1556.2,1556.0,7.7193]
[1744366516299,0.05917237,1556.3,1556.0,7.7193]
[1744366516300,6.4255,1556.3,1556.0,14.14592]
[1744366516500,6.42526,1556.4,1556.1,10.09326326]
[1744366516799,6.42526,1556.4,1556.1,16.51946326]
[1744366517005,12.85052,1556.4,1556.1,10.09326326]
[1744366517199,6.42526,1556.4,1556.2,1.00932633]
[1744366517769,7.19627,1556.5,1556.2,7.43517633]
[1744366517770,6.42477,1556.5,1556.2,7.43517633]
[1744366518011,6.42477,1556.5,1556.3,3.66712326]
[1744366518174,12.84883,1556.6,1556.4,6.857]
[1744366518369,6.42395,1556.7,1556.5,3.66712326]
[1744366518570,6.42395,1556.7,1556.5,4.47928641]
[1744366518772,6.42395,1556.7,1556.5,4.54352352]
[1744366519170,6.42395,1556.7,1556.5,4.47928641]
[1744366519506,6.42395,1556.7,1556.5,4.54352353]
[1744366519669,6.42395,1556.7,1556.6,0.14090321]
[1744366520067,6.42353,1556.8,1556.6,0.14090321]
[1744366520373,12.84713,1556.8,1556.6,0.14090321]
[1744366520675,6.42384,1556.7,1556.6,0.14090321]
[1744366521188,8.488377,1556.7,1556.6,0.14090321]
[1744366521396,6.42467,1556.5,1556.4,6.857]
[1744366521983,6.42401,1556.7,1556.4,7.6565]
[1744366522212,12.84804,1556.7,1556.4,14.08156]
[1744366522406,6.42467,1556.5,1556.4,6.857]
[1744366523094,12.8455,1557.0,1556.6,13.61658]
[1744366523303,6.4231,1556.9,1556.7,3.66712326]
[1744366523613,6.42267,1557.0,1556.8,6.855]
[1744366523816,12.8456,1557.0,1556.8,6.855]
[1744366524215,6.42267,1557.0,1556.8,6.855]
[1744366524519,12.84543,1557.0,1556.8,6.855]
[1744366525323,6.42267,1557.0,1556.8,7.56907715]
[1744366525524,12.84554,1557.0,1556.8,7.56907715]
[1744366525820,6.42267,1557.0,1556.8,7.56907715]
[1744366527484,12.84548,1557.0,1556.8,6.855]
[1744366527790,12.84552,1557.0,1556.8,6.855]
[1744366527995,6.42302,1556.9,1556.8,6.855]
[1744366531716,0.00648839,1557.1,1556.8,14.07341]
[1744366531928,0.00648839,1557.1,1556.8,20.49672]
[1744366532491,6.42881839,1557.1,1556.8,7.6501]
[1744366532723,6.42881839,1557.1,1556.8,14.07348]
[1744366533084,0.00648839,1557.1,1556.9,10.15431535]
[1744366533287,0.00648839,1557.1,1557.0,10.7276]
[1744366533501,0.00648839,1557.1,1557.0,11.2081482]
[1744366534791,0.00648839,1557.1,1557.0,11.33975313]
[1744366535725,0.00648839,1557.1,1557.0,66.47795545]
[1744366535920,0.00648839,1557.1,1557.0,66.41375313]
[1744366537616,0.00648839,1557.1,1557.0,65.86375313]
[1744366537828,0.00648839,1557.1,1557.0,60.65827639]
[1744366537982,0.00648839,1557.1,1557.0,59.42272819]
[1744366538626,0.00648839,1557.1,1557.0,58.87272819]
[1744366538948,6.42867839,1557.1,1557.0,55.20560493]
[1744366539731,6.42867839,1557.1,1557.0,0.13160493]
[1744366539912,6.42306,1556.9,1556.6,0.48670038]
[1744366540114,6.42306,1556.9,1556.5,10.09142326]
[1744366540315,6.42264,1557.0,1556.6,6.42425]
[1744366540615,0.83848839,1557.1,1556.5,3.66712326]
[1744366540929,6.42358,1556.8,1556.5,3.66712326]
[1744366541092,6.42314,1556.9,1556.5,10.57385215]
[1744366541294,7.26084839,1557.1,1556.7,6.4238]
[1744366541517,0.00648839,1557.1,1556.8,7.6076]
[1744366541828,0.00648839,1557.1,1556.8,20.45416]
[1744366542032,0.00648839,1557.1,1557.0,6.9726]
[1744366542206,0.00648839,1557.1,1557.0,9.9726]
[1744366542390,0.00648839,1557.1,1557.0,10.7801]
[1744366542728,0.00648839,1557.1,1557.0,11.25611319]
[1744366543532,0.00648839,1557.1,1557.0,11.32032012]
[1744366543826,0.00648839,1557.1,1557.0,14.98744338]
[1744366544128,0.00648839,1557.1,1557.0,11.25611319]
[1744366545124,0.00648839,1557.1,1557.0,11.32031522]
[1744366545290,0.00648839,1557.1,1557.0,14.98743848]
[1744366545496,0.00648839,1557.1,1557.0,15.7332282]
[1744366545726,0.00648839,1557.1,1557.0,16.50507378]
[1744366546315,8.39e-06,1557.1,1557.0,16.50507378]
[1744366546520,0.779,1557.8,1557.5,6.42033]
[1744366546732,0.779,1557.8,1557.6,6.905]
[1744366547901,13.61824,1557.8,1557.6,6.905]
[1744366549313,7.19849,1557.8,1557.6,6.905]
[1744366549638,7.19849,1557.8,1557.6,7.5955]
[1744366549852,7.19849,1557.8,1557.7,0.12884372]
[1744366550140,7.19849,1557.8,1557.6,7.5955]
[1744366550296,7.19849,1557.8,1557.7,0.12884372]
[1744366550498,6.41972,1557.7,1557.6,6.905]